bitfinex-derivatives/quotes_SOLF0:USTF0_20250425
["timestamp","ask_amount","ask_price","bid_price","bid_amount"]
[1745593972479,65.11310456,154.15,154.07,31.56]
[1745593972983,58.63040456,154.15,154.07,31.56]
[1745593973680,31.48,154.15,154.07,31.56]
[1745593975783,58.63040456,154.15,154.07,31.56]
[1745593976289,65.11310456,154.15,154.07,31.56]
[1745593976489,58.63040456,154.15,154.07,31.56]
[1745593976992,6.4831,154.14,154.07,31.56]
[1745593977288,58.63040456,154.15,154.05,466.82]
[1745593978489,6.4829,154.14,154.05,466.82]
[1745593978691,58.63040456,154.15,154.03,43.3307]
[1745593979087,6.4836,154.13,154.03,43.3307]
[1745593979388,58.63040456,154.15,154.03,43.3307]
[1745593979584,6.484,154.12,154.03,43.3307]
[1745593979791,58.63040456,154.15,154.03,43.3307]
[1745593979992,31.48,154.15,154.03,43.3307]
[1745593980687,31.48,154.15,154.04,27.15040456]
[1745593980887,27.15040456,154.14,154.04,27.15040456]
[1745593981094,33.63480456,154.11,154.03,43.3307]
[1745593981392,31.5,154.1,154.03,3.9074]
[1745593982189,37.9846,154.1,154.03,3.9074]
[1745593982390,31.5,154.1,154.03,3.9074]
[1745593986895,31.5,154.1,154.0,3.8109]
[1745593987297,16.97074383,154.08,154.0,3.8109]
[1745593987997,23.45634383,154.08,154.0,3.8109]
[1745593988497,16.97074383,154.08,154.0,3.8109]
[1745593989195,23.45624383,154.08,154.0,3.8109]
[1745593989497,6.4855,154.08,154.0,3.8109]
[1745593989893,27.15279514,154.07,153.91,7.61207445]
[1745593990195,27.15279514,154.04,153.93,3.8015]
[1745593990395,31.5,154.03,153.94,27.15279514]
[1745593992196,466.96,154.1,154.01,27.15279514]
[1745593992999,466.96,154.1,153.99,3.7341]
[1745593993192,27.15279514,154.09,153.99,3.7341]
[1745593994994,33.63799514,154.09,153.99,3.7341]
[1745593995194,27.15279514,154.09,153.99,3.7341]
[1745593995802,27.15279514,154.09,153.99,30.88689514]
[1745593995994,27.15279514,154.09,154.0,3.9161]
[1745593996900,27.15279514,154.09,153.99,3.7341]
[1745593997392,27.15279514,154.09,153.99,30.88689514]
[1745593997594,27.15279514,154.09,154.0,4.0286]
[1745593997999,466.96,154.1,154.0,4.0286]
[1745594004606,27.15279514,154.06,153.98,31.5]
[1745594004800,31.44,154.05,153.98,31.5]
[1745594005002,31.44,154.05,153.95,467.06]
[1745594007503,58.59279514,154.09,153.97,27.15279514]
[1745594007801,31.44,154.09,154.0,27.15279514]
[1745594008000,466.96,154.1,154.01,11.7086]
[1745594011410,466.96,154.1,154.02,16.96483781]
[1745594012803,48.40483781,154.11,154.02,16.96483781]
[1745594013402,48.40483781,154.11,154.01,11.7086]
[1745594013403,16.96483781,154.09,154.01,11.7086]
[1745594013608,16.96483781,154.09,154.01,7.9899]
[1745594014307,48.40483781,154.11,154.02,16.96483781]
[1745594014709,31.44,154.11,154.02,16.96483781]
[1745594014909,48.40483781,154.11,154.02,16.96483781]
[1745594016508,48.40483781,154.11,154.01,7.9899]
[1745594016713,31.44,154.11,154.04,16.96483781]
[1745594017411,48.40483781,154.11,154.02,21.07583781]
[1745594018307,48.40483781,154.11,154.01,24.95473781]
[1745594018510,16.96483781,154.09,154.01,7.9899]
[1745594018813,16.96483781,154.09,154.01,24.95473781]
[1745594020809,16.96483781,154.09,154.0,31.44]
[1745594021015,16.96483781,154.07,154.0,31.44]
[1745594021308,16.96483781,154.05,153.97,24.60823781]
[1745594021515,16.96483781,154.05,153.97,7.6434]
[1745594021808,31.44,154.06,153.97,7.6434]
[1745594021809,31.44,154.06,153.97,3.8649]
[1745594022015,16.96483781,154.03,153.93,82.63493562]
[1745594022216,16.96483781,154.03,153.93,86.59603562]
[1745594022716,16.96483781,154.03,153.95,16.96483781]
[1745594023011,16.96483781,154.05,153.97,16.96483781]
[1745594023211,31.44,154.06,153.97,16.96483781]
[1745594023412,31.44,154.06,154.04,6.4869]
[1745594024113,31.44,154.06,153.99,16.96483781]
[1745594025014,31.44,154.06,153.97,16.96483781]
[1745594025608,31.44,154.06,153.93,39.1829]
[1745594025812,16.96483781,154.05,153.95,16.96483781]
[1745594027015,16.96483781,154.05,153.97,16.96483781]
[1745594028315,31.44,154.06,153.97,16.96483781]
[1745594029716,31.44,154.06,154.01,16.96483781]
[1745594030016,31.44,154.06,154.05,6.4867]
[1745594031322,31.44,154.06,153.99,16.96483781]
[1745594031518,31.44,154.06,153.97,16.96483781]
[1745594034017,31.44,154.06,154.04,6.487]
[1745594034823,31.44,154.06,154.05,6.4867]
[1745594035624,31.44,154.06,153.97,16.96483781]
[1745594036127,31.44,154.06,154.05,6.4867]
[1745594037129,16.96483781,154.11,154.01,16.96483781]
[1745594037426,31.36,154.11,154.05,16.96483781]
[1745594037627,31.36,154.11,154.1,6.4846]
[1745594041727,484.02483781,154.17,154.1,6.4846]
[1745594041920,31.36,154.15,154.09,16.96483781]
[1745594042325,498.42,154.17,154.11,16.96483781]
[1745594042626,498.42,154.17,154.16,6.482]
[1745594044327,498.42,154.17,154.13,16.96483781]
[1745594044625,22.35603,154.18,154.1,31.36]
[1745594044830,22.35603,154.18,154.17,16.96483781]
[1745594045232,467.06,154.26,154.17,16.96483781]
[1745594045427,31.34,154.28,154.21,16.96483781]
[1745594045628,48.30483781,154.28,154.2,16.96483781]
[1745594045823,48.30483781,154.28,154.18,25.00273781]
[1745594046029,31.34,154.28,154.2,16.96483781]
[1745594046533,31.34,154.28,154.22,16.96483781]
[1745594046734,31.34,154.28,154.24,16.96483781]
[1745594047427,31.34,154.28,154.21,58.41337779]
[1745594048328,37.8152,154.33,154.21,58.41337779]
[1745594048633,31.34,154.33,154.24,27.07337779]
[1745594050032,31.34,154.33,154.21,58.41337779]
[1745594050331,6.4756,154.32,154.21,58.41337779]
[1745594051231,6.4758,154.31,154.27,6.4771]
[1745594051438,27.07337779,154.32,154.21,31.34]
[1745594051937,27.07337779,154.32,154.25,6.478]
[1745594052137,27.07337779,154.32,154.21,31.34]
[1745594052437,31.34,154.33,154.21,58.41337779]
[1745594052641,31.34,154.33,154.24,27.07337779]
[1745594052936,31.34,154.33,154.25,4.0484]
[1745594053839,31.34,154.33,154.29,6.4763]
[1745594054541,31.34,154.33,154.25,4.0484]
[1745594054739,31.34,154.33,154.25,8.0177]
[1745594054943,37.815,154.33,154.25,8.0177]
[1745594055242,31.34,154.33,154.28,6.4769]
[1745594055441,37.8151,154.33,154.25,8.0177]
[1745594055644,37.8151,154.33,154.29,6.4763]
[1745594055842,37.8151,154.33,154.25,8.0177]
[1745594056243,37.8151,154.33,154.3,6.4761]
[1745594057341,27.07337779,154.32,154.21,58.41337779]
[1745594057935,33.54877779,154.32,154.21,58.41337779]
[1745594058442,6.4762,154.3,154.27,6.4771]
[1745594058643,31.34,154.33,154.21,58.41337779]
[1745594058845,31.34,154.33,154.32,6.4753]
[1745594059844,31.32,154.37,154.28,3.8352]
[1745594060242,27.07337779,154.34,154.25,7.7875]
[1745594060844,6.4752,154.33,154.25,7.7875]
[1745594061546,27.07337779,154.34,154.25,7.7875]
[1745594062441,27.07337779,154.34,154.25,3.9652]
[1745594062644,27.07337779,154.31,154.25,3.9652]
[1745594062940,58.39337779,154.31,154.25,3.9652]
[1745594063446,6.4769,154.29,154.25,3.9652]
[1745594063744,58.39337779,154.31,154.25,3.9652]
[1745594064246,6.4764,154.3,154.25,3.9652]
[1745594064540,58.39337779,154.31,154.25,3.9652]
[1745594064847,31.32,154.31,154.25,3.9652]
[1745594065643,37.6938,154.36,154.25,31.03857779]
[1745594066044,31.22,154.36,154.25,31.03857779]
[1745594066749,37.6936,154.36,154.25,31.03857779]
[1745594067149,31.22,154.36,154.25,31.03857779]
[1745594067447,6.4751,154.33,154.25,31.03857779]
[1745594067947,6.4746,154.34,154.25,31.03857779]
[1745594068247,31.22,154.36,154.25,31.03857779]
[1745594069049,6.4752,154.33,154.25,31.03857779]
[1745594069648,27.07337779,154.34,154.25,3.9652]
[1745594070647,6.4755,154.32,154.25,3.9652]
[1745594071442,31.22,154.31,154.25,3.9652]
[1745594071647,37.6958,154.31,154.25,3.9652]
[1745594072048,31.22,154.31,154.25,3.9652]
[1745594073051,58.29337779,154.31,154.23,3.8352]
[1745594073652,6.4766,154.3,154.23,3.8352]
[1745594076456,31.22,154.31,154.23,3.8352]
[1745594077157,58.29337779,154.31,154.23,3.8352]
[1745594077354,16.92588438,154.29,154.23,3.8352]
[1745594077554,6.4764,154.3,154.23,3.8352]
[1745594077754,16.92588438,154.29,154.23,3.8352]
[1745594078052,23.40278438,154.29,154.26,6.4776]
[1745594078248,16.92588438,154.29,154.23,3.8352]
[1745594078453,16.92588438,154.27,154.21,4.003]
[1745594078857,31.22,154.31,154.21,4.003]
[1745594079058,16.92588438,154.27,154.21,4.003]
[1745594079252,16.92588438,154.27,154.25,6.4782]
[1745594080861,16.92588438,154.27,154.26,6.4778]
[1745594081358,16.92588438,154.27,154.21,4.003]
[1745594081359,16.92588438,154.27,154.25,6.4781]
[1745594081756,23.40338438,154.27,154.25,6.4781]
[1745594081959,16.92588438,154.27,154.21,4.003]
[1745594082659,6.4781,154.26,154.21,4.003]
[1745594082854,16.92588438,154.25,154.21,4.003]
[1745594083254,23.40418438,154.25,154.21,4.003]
[1745594083555,23.40418438,154.25,154.2,22.69553]
[1745594083860,16.92588438,154.25,154.2,22.69553]
[1745594084561,16.92588438,154.25,154.23,6.4788]
[1745594085663,16.92588438,154.25,154.24,6.4787]
[1745594086067,16.92588438,154.25,154.2,22.69553]
[1745594086259,23.40418438,154.25,154.2,22.69553]
[1745594086565,23.40418438,154.25,154.23,6.4789]
[1745594087264,16.92588438,154.25,154.23,6.4789]
[1745594088566,16.92588438,154.25,154.24,6.4787]
[1745594089368,31.22,154.26,154.2,22.69553]
[1745594089568,466.42,154.34,154.22,16.92588438]
[1745594089865,31.24,154.3,154.22,16.92588438]
[1745594090067,48.16588438,154.3,154.2,39.62141438]
[1745594090464,16.92588438,154.28,154.2,39.62141438]
[1745594090767,16.92588438,154.28,154.2,22.69553]
[1745594090967,6.4775,154.27,154.25,6.4781]
[1745594091668,16.92588438,154.28,154.2,22.69553]
[1745594091967,16.92588438,154.26,154.2,22.69553]
[1745594092269,6.4783,154.25,154.22,6.4793]
[1745594093565,16.92588438,154.26,154.23,6.479]
[1745594093566,23.40388438,154.26,154.23,6.479]
[1745594094170,16.92588438,154.26,154.23,6.479]
[1745594094668,6.4785,154.25,154.22,6.4793]
[1745594094973,16.92588438,154.26,154.2,22.69553]
[1745594095169,6.4789,154.24,154.21,6.4795]
[1745594095668,6.4789,154.24,154.2,22.69553]
[1745594095866,37.6185,154.25,154.22,6.4793]
[1745594096066,37.6185,154.25,154.2,22.69553]
[1745594096474,37.6185,154.25,154.22,6.4791]
[1745594096877,6.4787,154.24,154.22,6.4791]
[1745594097274,23.40458438,154.24,154.22,6.4791]
[1745594097675,16.92588438,154.24,154.22,6.4791]
[1745594098477,16.92588438,154.24,154.21,6.4797]
[1745594098774,16.92588438,154.24,154.2,22.69553]
[1745594099274,23.40478438,154.24,154.2,22.69553]
[1745594099477,16.92588438,154.24,154.2,22.69553]
[1745594099976,23.40478438,154.24,154.22,6.4795]
[1745594100278,16.92588438,154.24,154.2,22.69553]
[1745594100677,16.92588438,154.22,154.2,22.69553]
[1745594101176,23.40558438,154.22,154.2,22.69553]
[1745594101676,16.92588438,154.22,154.2,22.69553]
[1745594102877,6.4799,154.21,154.2,22.69553]
[1745594104375,16.92588438,154.22,154.1,31.16]
[1745594104579,16.92588438,154.16,154.1,31.16]
[1745594104782,16.92588438,154.16,154.08,8.0653]
[1745594105275,16.92588438,154.18,154.08,8.0653]
[1745594105478,16.92588438,154.18,154.09,16.92588438]
[1745594105679,31.16,154.21,154.1,3.9289]
[1745594105680,16.92588438,154.2,154.1,3.9289]
[1745594105880,16.92588438,154.2,154.11,16.92588438]
[1745594106378,31.16,154.21,154.13,16.92588438]
[1745594106578,6.4806,154.2,154.11,16.92588438]
[1745594106773,16.92588438,154.2,154.11,16.92588438]
[1745594106978,16.92588438,154.18,154.1,3.9289]
[1745594107178,23.40818438,154.16,154.1,3.9289]
[1745594107385,48.08588438,154.16,154.1,3.9289]
[1745594107580,31.16,154.16,154.11,16.92588438]
[1745594107781,31.16,154.2,154.11,16.92588438]
[1745594108478,31.16,154.2,154.13,16.92588438]
[1745594108782,31.16,154.2,154.14,4.0195]
[1745594108980,48.08588438,154.2,154.16,6.4818]
[1745594109182,54.56648438,154.2,154.16,6.4818]
[1745594109381,48.08588438,154.2,154.14,4.0195]
[1745594109581,48.08588438,154.2,154.18,6.4811]
[1745594109780,31.16,154.2,154.14,4.0195]
[1745594110584,31.16,154.2,154.16,6.4818]
[1745594110780,6.481,154.19,154.14,4.0195]
[1745594110980,48.08588438,154.2,154.14,4.0195]
[1745594111282,31.16,154.2,154.15,16.92588438]
[1745594111484,31.16,154.2,154.15,21.03818438]
[1745594111680,31.16,154.2,154.19,6.4808]
[1745594111881,31.16,154.24,154.17,16.92588438]
[1745594112079,31.16,154.24,154.19,16.92588438]
[1745594112279,31.16,154.28,154.21,16.92588438]
[1745594112683,31.16,154.28,154.22,7.8477]
[1745594112881,31.16,154.28,154.26,6.4776]
[1745594113081,31.16,154.28,154.22,11.7254]
[1745594113986,31.16,154.28,154.23,16.92588438]
[1745594114183,497.86,154.32,154.23,16.92588438]
[1745594114380,31.16,154.32,154.25,16.92588438]
[1745594114685,31.16,154.32,154.31,6.4757]
[1745594114985,31.16,154.32,154.25,16.92588438]
[1745594115581,31.16,154.32,154.31,6.4757]
[1745594115984,31.16,154.32,154.27,16.92588438]
[1745594116986,37.6339,154.36,154.27,16.92588438]
[1745594117187,31.16,154.36,154.27,16.92588438]
[1745594117484,31.16,154.37,154.29,16.92588438]
[1745594117887,31.16,154.37,154.29,7.5514]
[1745594118081,48.08588438,154.37,154.29,7.5514]
[1745594118989,6.4741,154.35,154.29,7.5514]
[1745594119187,48.08588438,154.37,154.29,7.5514]
[1745594119490,6.4754,154.32,154.24,16.92588438]
[1745594119689,16.92588438,154.33,154.24,16.92588438]
[1745594120190,6.4754,154.32,154.29,6.4766]
[1745594120391,16.92588438,154.33,154.29,6.4766]
[1745594120689,23.40098438,154.33,154.29,6.4766]
[1745594120884,23.40098438,154.33,154.3,6.4761]
[1745594121089,16.92588438,154.35,154.24,16.92588438]
[1745594121289,6.4745,154.34,154.3,6.4759]
[1745594121591,6.4745,154.34,154.24,16.92588438]
[1745594121887,16.92588438,154.33,154.28,6.4767]
[1745594122187,16.92588438,154.31,154.28,6.4767]
[1745594122389,16.92588438,154.31,154.27,6.4773]
[1745594122590,16.92588438,154.29,154.22,3.8575]
[1745594122889,23.40398438,154.26,154.17,56.08198438]
[1745594123190,31.14,154.27,154.17,56.08198438]
[1745594123589,31.14,154.27,154.24,6.4784]
[1745594123788,31.14,154.27,154.17,56.08198438]
[1745594124094,31.14,154.27,154.23,6.4787]
[1745594124292,31.14,154.27,154.21,16.92588438]
[1745594124492,31.06,154.31,154.23,16.92588438]
[1745594124792,31.06,154.32,154.24,7.9939]
[1745594125291,31.06,154.32,154.25,16.92588438]
[1745594125888,31.06,154.32,154.3,6.4759]
[1745594126290,31.06,154.32,154.25,16.92588438]
[1745594127495,31.06,154.32,154.31,6.4757]
[1745594127795,31.06,154.32,154.25,16.92588438]
[1745594128095,31.06,154.32,154.29,6.4763]
[1745594128295,47.98588438,154.35,154.25,16.92588438]
[1745594128486,47.98588438,154.35,154.27,16.92588438]
[1745594128690,47.98588438,154.35,154.32,6.4753]
[1745594128895,47.98588438,154.35,154.27,16.92588438]
[1745594129189,47.98588438,154.35,154.3,6.4759]
[1745594129396,47.98588438,154.35,154.25,16.92588438]
[1745594129799,6.4765,154.3,154.27,6.4774]
[1745594129996,47.98588438,154.29,154.17,47.98588438]
[1745594130198,16.92588438,154.25,154.17,35.1281]
[1745594130497,16.92588438,154.23,154.17,4.0681]
[1745594130895,16.92588438,154.24,154.17,4.0681]
[1745594131095,16.92588438,154.26,154.17,4.0681]
[1745594131300,16.92588438,154.24,154.17,4.0681]
[1745594131495,31.06,154.23,154.17,4.0681]
[1745594131799,16.92588438,154.22,154.17,4.0681]
[1745594131998,16.92588438,154.22,154.13,38.7293]
[1745594132297,31.06,154.23,154.14,20.66298438]
[1745594132792,16.92588438,154.22,154.14,20.66298438]
[1745594132999,23.40568438,154.22,154.14,3.7371]
[1745594133198,16.92588438,154.2,154.14,3.7371]
[1745594133501,16.92588438,154.18,154.13,3.8456]
[1745594133698,47.98588438,154.18,154.13,3.8456]
[1745594134003,31.06,154.18,154.13,3.8456]
[1745594135904,31.06,154.18,154.09,31.06]
[1745594136098,6.482,154.17,154.09,31.06]
[1745594136300,31.06,154.18,154.09,31.06]
[1745594137297,31.06,154.18,154.08,4.1091]
[1745594137700,27.12171816,154.17,154.08,4.1091]
[1745594139000,6.4827,154.15,154.08,4.1091]
[1745594139405,6.483,154.14,154.08,4.1091]
[1745594139605,31.06,154.13,154.08,4.1091]
[1745594142302,493.70171816,154.2,154.08,4.1091]
[1745594142602,31.08,154.17,154.08,4.1091]
[1745594142810,37.5616,154.17,154.08,4.1091]
[1745594143209,31.08,154.17,154.08,4.1091]
[1745594144709,37.562,154.17,154.08,4.1091]
[1745594145807,6.4821,154.16,154.08,4.1091]
[1745594146212,37.5617,154.17,154.08,4.1091]
[1745594146420,31.08,154.17,154.08,4.1091]
[1745594146710,31.08,154.17,154.1,27.12171816]
[1745594147417,37.5618,154.17,154.1,27.12171816]
[1745594147618,31.08,154.17,154.08,4.1091]
[1745594147915,37.5618,154.17,154.08,4.1091]
[1745594148116,31.08,154.17,154.1,27.12171816]
[1745594148718,31.08,154.17,154.1,58.20171816]
[1745594149610,31.08,154.17,154.1,31.08]
[1745594150209,37.5616,154.17,154.1,31.08]
[1745594151019,31.08,154.17,154.08,4.1091]
[1745594151617,6.4823,154.16,154.08,4.1091]
[1745594152221,37.5618,154.17,154.08,4.1091]
[1745594152420,31.08,154.17,154.08,4.1091]
[1745594152720,6.4821,154.16,154.08,4.1091]
[1745594152922,31.08,154.17,154.08,4.1091]
[1745594155324,31.08,154.17,154.09,16.95006695]
[1745594155922,48.03006695,154.17,154.08,4.1091]
[1745594156122,16.95006695,154.15,154.08,4.1091]
[1745594156424,48.03006695,154.17,154.08,4.1091]
[1745594157123,31.08,154.17,154.09,16.95006695]
[1745594158229,6.4824,154.16,154.08,4.1091]
[1745594158526,48.03006695,154.17,154.08,4.1091]
[1745594158738,54.51206695,154.17,154.13,6.4831]
[1745594159229,48.03006695,154.17,154.12,6.4836]
[1745594159429,48.03006695,154.17,154.08,4.1091]
[1745594159721,16.95006695,154.15,154.11,6.484]
[1745594159927,16.95006695,154.15,154.06,38.7729]
[1745594160323,16.95006695,154.15,154.07,16.95006695]
[1745594161023,23.43256695,154.15,154.07,16.95006695]
[1745594161225,48.03006695,154.17,154.07,16.95006695]
[1745594161720,6.4826,154.15,154.12,6.4834]
[1745594161929,6.4826,154.15,154.07,16.95006695]
[1745594162328,6.4826,154.15,154.12,6.4834]
[1745594162830,6.483,154.14,154.11,6.484]
[1745594163224,16.95006695,154.13,154.06,3.7595]
[1745594163425,6.4843,154.11,154.06,3.7595]
[1745594164127,6.4848,154.1,154.03,16.95006695]
[1745594164431,16.95006695,154.11,154.01,16.95006695]
[1745594164624,6.4853,154.09,154.01,16.95006695]
[1745594164924,16.95006695,154.11,154.01,16.95006695]
[1745594165226,16.95006695,154.11,154.0,11.6562]
[1745594165227,6.4856,154.08,154.0,11.6562]
[1745594165428,16.95006695,154.09,154.0,11.6562]
[1745594165627,16.95006695,154.09,154.01,16.95006695]
[1745594166229,6.4857,154.08,154.01,16.95006695]
[1745594168725,6.4861,154.07,154.0,11.6562]
[1745594168930,16.95006695,154.09,154.0,11.6562]
[1745594169630,16.95006695,154.05,153.99,5.0]
[1745594169831,47.95006695,154.05,153.99,5.0]
[1745594170029,54.43696695,154.05,153.99,5.0]
[1745594170728,6.4871,154.04,153.99,5.0]
[1745594171133,6.4871,154.04,154.01,6.4881]
[1745594171336,16.95006695,154.02,153.99,5.0]
[1745594172632,33.9001339,154.0,153.89,7.65537241]
[1745594172833,16.95006695,153.94,153.89,7.65537241]
[1745594173032,47.95006695,153.94,153.89,7.65537241]
[1745594173230,16.95006695,153.92,153.89,7.65537241]
[1745594173832,16.95006695,153.9,153.89,7.65537241]
[1745594175141,23.44306695,153.9,153.89,7.65537241]
[1745594175337,16.95006695,153.9,153.88,1e-08]
[1745594175535,31.02,153.89,153.88,6.49380001]
[1745594175734,31.02,153.94,153.88,1e-08]
[1745594175928,31.02,153.94,153.86,16.95006695]
[1745594176133,31.02,153.94,153.88,16.95006695]
[1745594176639,31.02,153.94,153.93,6.4917]
[1745594177631,31.02,153.94,153.86,47.97006695]
[1745594177834,47.97006695,153.94,153.86,31.02]
[1745594178535,16.95006695,153.92,153.85,7.862]
[1745594178934,16.95006695,153.92,153.82,47.97006695]
[1745594179137,16.95006695,153.9,153.85,6.4948]
[1745594179439,31.02,153.89,153.81,4.0119]
[1745594179639,31.02,153.88,153.84,6.4953]
[1745594179832,31.02,153.88,153.76,12.997]
[1745594179833,6.4946,153.87,153.75,27.22582315]
[1745594180035,58.24582315,153.88,153.75,27.22582315]
[1745594180036,31.02,153.88,153.77,7.9845]
[1745594180329,31.02,153.88,153.83,6.4957]
[1745594180530,31.02,153.88,153.77,7.9845]
[1745594180734,27.22582315,153.86,153.72,27.22582315]
[1745594181235,27.22582315,153.86,153.75,27.22582315]
[1745594181631,58.24582315,153.88,153.75,27.22582315]
[1745594181840,27.22582315,153.85,153.8,6.4969]
[1745594182140,27.22582315,153.85,153.75,27.22582315]
[1745594182442,27.22582315,153.85,153.8,6.4972]
[1745594182741,27.22582315,153.85,153.75,27.22582315]
[1745594183043,27.22582315,153.87,153.82,6.4963]
[1745594183233,6.4948,153.86,153.82,6.4963]
[1745594183438,27.22582315,153.84,153.72,27.22582315]
[1745594183638,31.04,153.83,153.79,6.4973]
[1745594183837,37.5362,153.83,153.79,6.4973]
[1745594184037,31.04,153.83,153.72,27.22582315]
[1745594184943,6.4965,153.82,153.72,27.22582315]
[1745594185243,31.04,153.83,153.79,6.4976]
[1745594185746,6.4967,153.82,153.71,11.8266]
[1745594185945,27.22582315,153.81,153.71,11.8266]
[1745594186335,27.22582315,153.81,153.78,6.4979]
[1745594186539,33.72292315,153.81,153.72,0.25923]
[1745594186835,27.22582315,153.81,153.78,6.4977]
[1745594187842,27.22582315,153.81,153.76,6.4986]
[1745594188044,27.22582315,153.81,153.72,0.25923]
[1745594189147,33.72272315,153.81,153.72,0.25923]
[1745594189347,27.22582315,153.75,153.46,229.66117256]
[1745594189543,27.22582315,153.72,153.57,30.98012315]
[1745594189740,27.22582315,153.67,153.57,3.7543]
[1745594190035,30.96,153.66,153.57,3.7543]
[1745594190236,37.4635,153.66,153.57,3.7543]
[1745594190446,30.96,153.66,153.54,27.22582315]
[1745594190643,30.96,153.66,153.55,3.7543]
[1745594191347,360.0,153.87,153.71,6.501]
[1745594191547,27.22582315,153.77,153.63,27.22582315]
[1745594191747,30.96,153.76,153.64,11.6621]
[1745594192244,27.22582315,153.74,153.64,11.6621]
[1745594193649,27.22582315,153.71,153.58,27.22582315]
[1745594193849,30.98,153.7,153.59,3.7858]
[1745594194747,30.98,153.7,153.6,27.22582315]
[1745594195043,27.22582315,153.74,153.63,27.22582315]
[1745594195345,30.98,153.73,153.64,4.0724]
[1745594195538,30.98,153.73,153.65,3.943]
[1745594197048,30.98,153.73,153.64,4.0724]
[1745594197245,27.22582315,153.72,153.64,4.0724]
[1745594198047,30.98,153.73,153.64,4.0724]
[1745594198750,27.22582315,153.71,153.61,30.98]
[1745594198941,27.22582315,153.71,153.6,3.8809]
[1745594199344,27.22582315,153.71,153.6,31.10672315]
[1745594199545,27.22582315,153.71,153.61,4.0164]
[1745594201551,30.98,153.73,153.61,4.0164]
[1745594202949,27.22582315,153.69,153.61,4.0164]
[1745594203149,30.98,153.68,153.61,4.0164]
[1745594210959,31.0,153.71,153.63,27.22582315]
[1745594212360,31.0,153.71,153.66,27.22582315]
[1745594212762,31.0,153.75,153.69,27.22582315]
[1745594213762,467.92,153.76,153.69,27.22582315]
[1745594215265,467.92,153.76,153.68,3.9929]
[1745594215663,467.92,153.76,153.69,27.22582315]
[1745594215963,31.0,153.77,153.69,27.22582315]
[1745594216358,31.0,153.77,153.68,34.8929]
[1745594216760,27.22582315,153.75,153.67,3.901]
[1745594218572,27.22582315,153.75,153.63,30.9]
[1745594218867,31.0,153.77,153.63,30.9]
[1745594219065,27.22582315,153.76,153.63,30.9]
[1745594219372,33.72482315,153.76,153.63,30.9]
[1745594219668,33.72482315,153.76,153.63,58.12582315]
[1745594219966,27.22582315,153.76,153.63,58.12582315]
[1745594221067,6.4996,153.75,153.63,58.12582315]
[1745594221471,27.22582315,153.76,153.63,58.12582315]
[1745594221666,33.72612315,153.73,153.62,4.1153]
[1745594221866,30.9,153.72,153.62,4.1153]
[1745594223069,27.22582315,153.7,153.62,4.1153]
[1745594223264,30.9,153.72,153.62,4.1153]
[1745594223973,30.9,153.72,153.63,13.0088]
[1745594224169,30.9,153.72,153.63,27.22582315]
[1745594224570,30.9,153.72,153.71,6.501]
[1745594226370,27.22582315,153.76,153.63,27.22582315]
[1745594226371,27.22582315,153.76,153.75,6.4993]
[1745594226570,58.12582315,153.76,153.75,6.4993]
[1745594226771,30.9,153.76,153.75,6.4993]
[1745594227475,30.9,153.76,153.68,4.0719]
[1745594228272,58.12582315,153.76,153.68,4.0719]
[1745594229072,30.9,153.76,153.68,4.0719]
[1745594229375,30.9,153.76,153.69,4.0527]
[1745594229576,468.14,153.88,153.72,27.22582315]
[1745594229777,27.22582315,153.85,153.72,40.22672315]
[1745594230779,27.22582315,153.85,153.81,6.4967]
[1745594231278,33.72122315,153.85,153.73,3.8984]
[1745594231467,27.22582315,153.85,153.73,3.8984]
[1745594231777,27.22582315,153.82,153.7,30.9]
[1745594231977,30.9,153.81,153.7,30.9]
[1745594232274,37.397,153.81,153.7,30.9]